fUST/lending_fUST_20240709
["ID","MTS","AMOUNT","RATE_DAILY","PERIOD"]
[331553405,1720495841538,-597.139721,0.0003839,2]
[331553406,1720495841548,-151.0,0.0003839,14]
[331553407,1720495841558,-151.0,0.0003839,14]
[331553408,1720495841568,-13771.79986431,0.000384,2]
[331553409,1720495841578,-154.492841,0.000384,14]
[331553410,1720495841588,-151.0,0.000384,14]
[331553411,1720495841598,-151.0,0.000384,14]
[331553412,1720495841608,-151.0,0.000384,14]
[331553413,1720495841618,-151.0,0.0003849,14]
[331553414,1720495841628,-292996.89047,0.00038499,14]
[331553415,1720495841640,-5273.42415152,0.000385,5]
[331553416,1720495841668,-220210.87925195,0.000385,2]
[331553417,1720495841756,-264.0,0.000385,2]
[331553812,1720495928447,164.0,0.00025,120]
[331553818,1720496052443,2422.41772484,0.00015,2]
[331553819,1720496098574,87.70121558,0.00014999,2]
[331553820,1720496098596,152.3624041,0.00014999,2]
[331553821,1720496123408,154.62117811,0.00014999,2]
[331553837,1720496303423,224.78587724,0.00014999,2]
[331553864,1720496485615,154.63660398,0.00014999,2]
[331553865,1720496507536,525.58539138,0.00014999,2]
[331553866,1720496517783,160.19888198,0.00014999,2]
[331553867,1720496529830,179.2682199,0.00014999,2]
[331553868,1720496556638,779.80021616,0.00014999,2]
[331553869,1720496609513,525.39824529,0.00014999,2]
[331553870,1720496673902,532.35471721,0.00014999,2]
[331553871,1720496699314,100000.0,0.00014998,2]
[331553872,1720496727651,404.67602219,0.00014999,2]
[331553873,1720496751490,526.15049087,0.00014999,2]
[331553874,1720496781605,1646.62630311,0.00014999,2]
[331553875,1720496783515,24900.0,0.00014935,2]
[331553876,1720496789784,2119.92962144,0.00014999,2]
[331553877,1720496791153,-217.358273,0.00015022,2]
[331553878,1720496791174,-3049.9685344,0.00015448,2]
[331553879,1720496791195,-300.0,0.00015586,2]
[331553880,1720496791218,-300.0,0.00015586,2]
[331553881,1720496791239,-442.72715464,0.00015995,2]
[331553882,1720496791260,-204.08145463,0.00016253,2]
[331553883,1720496791282,-500.0,0.00016253,2]
[331553884,1720496791302,-500.0,0.00016253,2]
[331553885,1720496791322,-491.30635431,0.00016253,2]
[331553886,1720496791341,-3107.67330396,0.00016254,2]
[331553887,1720496848733,9669.74668749,0.00014998,2]
[331553888,1720496977089,-219.63022438,0.00015391,2]
[331553889,1720497019604,6985.69568067,0.00014998,2]
[331553894,1720497032317,-30.36977562,0.00015391,2]
[331553895,1720497032326,-287.47457424,0.00015391,2]
[331553896,1720497032335,-300.0,0.00016154,2]
[331553897,1720497032344,-300.0,0.00016154,2]
[331553898,1720497032354,-274.73232644,0.00016155,2]
[331553899,1720497032710,-636.63466146,0.00016155,2]
[331553900,1720497032722,-4489.82737079,0.00016155,2]
[331554063,1720497038423,-2599.05339874,0.00016155,2]
[331554064,1720497038436,-1142.81697254,0.00016155,2]
[331554065,1720497038446,-7555.76252382,0.00016245,2]
[331554066,1720497038457,-3362.46,0.00016245,2]
[331554067,1720497038507,-921.58466037,0.00016245,2]
[331554068,1720497038519,-54957.22611241,0.00016245,2]
[331554069,1720497038529,-1000.0,0.00016253,10]
[331554070,1720497038539,-1000.0,0.00016253,10]
[331554071,1720497038549,-54136.9294521,0.00016254,2]
[331554072,1720497038559,-1000.0,0.00016254,10]
[331554073,1720497038568,-500.0,0.00016254,2]
[331554074,1720497038578,-500.0,0.00016254,2]
[331554075,1720497038587,-188.11240401,0.00016254,2]
[331554076,1720497038597,-500.0,0.00016254,2]
[331554077,1720497038607,-500.0,0.00016254,2]
[331554078,1720497038617,-248.64988319,0.00016254,2]
[331554079,1720497038627,-323.38376567,0.00016254,2]
[331554081,1720497038637,-500.0,0.00016254,2]
[331554083,1720497038646,-500.0,0.00016254,2]
[331554084,1720497038655,-158.2036952,0.00016254,2]
[331554085,1720497038665,-197.81278993,0.00016254,2]
[331554086,1720497038674,-500.0,0.00016254,2]
[331554087,1720497038683,-500.0,0.00016254,2]
[331554088,1720497038693,-500.0,0.00016254,2]
[331554090,1720497038702,-351.26641596,0.00016254,2]
[331554092,1720497038711,-500.0,0.00016254,2]
[331554093,1720497038720,-500.0,0.00016254,2]
[331554095,1720497038730,-500.0,0.00016254,2]
[331554097,1720497038743,-500.0,0.00016254,2]
[331554099,1720497038752,-500.0,0.00016254,2]
[331554101,1720497038761,-500.0,0.00016254,2]
[331554103,1720497038770,-500.0,0.00016254,2]
[331554104,1720497038779,-500.0,0.00016254,2]
[331554105,1720497038788,-500.0,0.00016254,2]
[331554106,1720497038798,-500.0,0.00016254,2]
[331554107,1720497038807,-500.0,0.00016254,2]
[331554108,1720497038817,-500.0,0.00016254,2]
[331554109,1720497038827,-42248.84590217,0.00016255,2]
[331554110,1720497038837,-155.07298006,0.00016255,2]
[331554112,1720497038847,-35030.92803602,0.00016255,2]
[331554114,1720497038856,-17258.59312702,0.00016255,2]
[331554116,1720497038866,-491.05706512,0.00016255,2]
[331554118,1720497038876,-1992.51989508,0.00016255,2]
[331554119,1720497038886,-4250.26628498,0.00016255,2]
[331554121,1720497038895,-166.666666,0.00016438,2]
[331554123,1720497038904,-166.666666,0.00016823,2]
[331554125,1720497038914,-9143.06472997,0.00017066,2]
[331554127,1720497038923,-166.666666,0.00017208,2]
[331554128,1720497038933,-166.666666,0.00017592,2]
[331554130,1720497038942,-420.0,0.00017659,2]
[331554131,1720497038952,-420.0,0.00017769,2]
[331554132,1720497038961,-166.666666,0.00017977,2]
[331554133,1720497038971,-9143.06472997,0.00017977,2]
[331554134,1720497038981,-1000.0,0.0001818,10]
[331554135,1720497038993,-1000.0,0.0001818,10]
[331554136,1720497039002,-154.62117811,0.0001818,2]
[331554137,1720497039011,-612.25395188,0.0001818,2]
[331554138,1720497039021,-166.666666,0.00018362,2]
[331554139,1720497039030,-191.12784748,0.00018798,2]
[331554140,1720497039041,-154.63660398,0.00018798,2]
[331554141,1720497039052,-704.48483568,0.00018799,2]
[331554143,1720497039062,-1036.24649553,0.000188,2]
[331554145,1720497039072,-133594.066593,0.00018879,2]
[331554147,1720497039082,-9143.06472997,0.00018888,2]
[331554148,1720497039093,-547.62445991,0.00018899,2]
[331554149,1720497039103,-9085.54446908,0.000189,2]
[331554150,1720497039112,-299.69692677,0.00019,2]
[331554151,1720497039122,-150.0,0.00019005,2]
[331554152,1720497039133,-813.14107465,0.00019039,3]
[331554153,1720497039143,-250.0,0.00019041,2]
[331554154,1720497039152,-163.12137,0.00019178,2]
[331554155,1720497039162,-162.498989,0.00019178,2]
[331554156,1720497039171,-440.8903542,0.00019178,4]
[331554157,1720497039181,-587.0,0.00019304,2]
[331554158,1720497039190,-587.0,0.00019546,2]
[331554159,1720497039200,-250.0,0.00019553,2]
[331554160,1720497039210,-133594.066593,0.00019669,2]
[331554161,1720497039220,-9143.06472997,0.00019799,2]
[331554162,1720497039230,-100069.52116256,0.000198,2]
[331554163,1720497039309,-150.3645055,0.00019853,2]
[331554165,1720497039319,-151.44589054,0.00019853,2]
[331554166,1720497039328,-150.0,0.00019957,2]
[331554167,1720497039338,-21004.02252795,0.0002,2]
[331554168,1720497039348,-154.63660398,0.0002,2]
[331554169,1720497039357,-154.63660398,0.0002,2]
[331554170,1720497039368,-11114.08530711,0.0002,2]
[331554171,1720497039377,-1065.65690458,0.0002,2]
[331554172,1720497039387,-435.0,0.0002,2]
[331554173,1720497039397,-155.49752189,0.0002,2]
[331554174,1720497039407,-155.27458999,0.0002,2]
[331554175,1720497039417,-169.7492569,0.0002,2]
[331554176,1720497039427,-52946.73685478,0.0002,2]
[331554177,1720497039437,-155.2509691,0.0002,2]
[331554178,1720497039447,-158.57719136,0.0002,2]
[331554179,1720497039458,-4855.00134939,0.0002,2]
[331554180,1720497039467,-49117.796117,0.0002,2]
[331554181,1720497039477,-350.0,0.00020101,2]
[331554182,1720497039489,-150.10186468,0.00020505,2]
[331554183,1720497039498,-450.0,0.00020649,2]
[331554184,1720497039508,-750.0,0.00021096,2]
[331554185,1720497039518,-252.154111,0.00021096,2]
[331554186,1720497039528,-823.0,0.00021103,2]
[331554187,1720497039537,-550.0,0.00021197,2]
[331554188,1720497039548,-222.86799845,0.000212,2]
[331554189,1720497039557,-823.0,0.00021501,2]
[331554190,1720497039567,-650.0,0.00021745,2]
[331554191,1720497039576,-264.58175342,0.00022,2]
[331554192,1720497039586,-1150.33496162,0.00022,2]
[331554193,1720497039595,-880.11608907,0.0002217,2]
[331554194,1720497039604,-750.0,0.00022293,2]
[331554195,1720497039614,-217.358273,0.00022533,2]
[331554196,1720497039623,-850.0,0.00022841,2]
[331554197,1720497039632,-160.556798,0.00022941,7]
[331554198,1720497039642,-301.75849603,0.00023,2]
[331554199,1720497039651,-456.0,0.00023068,2]
[331554200,1720497039661,-606.71308225,0.00023389,2]
[331554201,1720497039670,-1152.0,0.00023651,2]
[331554202,1720497039680,-9085.54446908,0.000239,2]
[331554203,1720497039689,-44250.7833899,0.000244,2]
[331554204,1720497039698,-155.735033,0.000244,7]
[331554205,1720497039708,-151.0,0.000244,7]
[331554207,1720497039717,-2219.16977418,0.0002448,2]
[331554209,1720497039726,-200.0,0.00024658,2]
[331554210,1720497039738,-380.0,0.00024658,2]
[331554211,1720497039748,-154.94184435,0.00025,2]
[331554212,1720497039758,-703.65876633,0.00025,2]
[331554213,1720497039767,-305.75194503,0.00025,2]
[331554214,1720497039780,-189.22156458,0.00025,2]
[331554215,1720497039789,-1194.74753859,0.00025,7]
[331554216,1720497039799,-6863.87493251,0.00025,2]
[331554217,1720497039808,-433.24056988,0.00025,2]
[331554218,1720497039818,-428.24738691,0.00025,2]
[331554219,1720497039827,-190.10965424,0.00025,10]
[331554220,1720497039837,-763.79636746,0.00025,2]
[331554221,1720497039846,-7427.1094573,0.00025,60]
[331554222,1720497039857,-748.40623503,0.00025005,2]
[331554223,1720497039867,-819.63998968,0.00025869,2]
[331554224,1720497039876,-154.62117811,0.00025902,2]
[331554225,1720497039886,-1240.0,0.00026016,2]
[331554226,1720497039896,-30000.0,0.00026062,2]
[331554227,1720497039906,-271.52737978,0.00026848,2]
[331554228,1720497039915,-166.522732,0.00027123,2]
[331554229,1720497039926,-307.64906425,0.00027184,2]
[331554230,1720497039937,-750.0,0.00027195,2]
[331554231,1720497039948,-252.154111,0.00027195,2]
[331554232,1720497039958,-151.0,0.00027397,7]
[331554234,1720497039969,-168.040691,0.00027397,7]
[331554236,1720497039979,-633.62481072,0.00027397,2]
[331554237,1720497039991,-671.89394913,0.00027397,2]
[331554238,1720497040001,-671.89394913,0.00027397,2]
[331554239,1720497040011,-671.89394913,0.00027397,2]
[331554240,1720497040020,-671.89394913,0.00027397,2]
[331554241,1720497040030,-671.89394913,0.00027397,2]
[331554242,1720497040040,-671.89394913,0.00027397,2]
[331554243,1720497040052,-671.89394913,0.00027397,2]
[331554244,1720497040063,-671.89394913,0.00027397,2]
[331554245,1720497040073,-671.89394913,0.00027397,2]
[331554246,1720497040083,-671.89394913,0.00027397,2]
[331554247,1720497040095,-671.89394913,0.00027397,2]
[331554249,1720497040104,-671.89394913,0.00027397,2]
[331554251,1720497040114,-671.89394913,0.00027397,2]
[331554253,1720497040124,-671.89394913,0.00027397,2]
[331554255,1720497040133,-671.89394913,0.00027397,2]
[331554256,1720497040144,-671.89394913,0.00027397,2]
[331554258,1720497040155,-671.89394913,0.00027397,2]
[331554260,1720497040164,-671.89394913,0.00027397,2]
[331554262,1720497040174,-671.89394913,0.00027397,2]
[331554263,1720497040183,-671.89394913,0.00027397,2]
[331554264,1720497040192,-671.89394913,0.00027397,2]
[331554265,1720497040202,-671.89394913,0.00027397,2]
[331554266,1720497040211,-671.89394913,0.00027397,2]
[331554268,1720497040220,-671.89394913,0.00027397,2]
[331554269,1720497040229,-671.89394913,0.00027397,2]
[331554271,1720497040241,-671.89394913,0.00027397,2]
[331554273,1720497040251,-671.89394913,0.00027397,2]
[331554274,1720497040261,-671.89394913,0.00027397,2]
[331554275,1720497040271,-151.0,0.00027397,7]
[331554276,1720497040280,-151.0,0.00027397,7]
[331554277,1720497040290,-191.0559141,0.00027397,120]
[331554278,1720497040299,-151.0,0.00027397,7]
[331554279,1720497040309,-162.077055,0.00027397,7]
[331554280,1720497040319,-272.107494,0.00027397,7]
[331554281,1720497040328,-272.107494,0.00027397,7]
[331554282,1720497040337,-272.107494,0.00027397,7]
[331554283,1720497040346,-272.107494,0.00027397,7]
[331554284,1720497040355,-151.0,0.00027397,7]
[331554285,1720497040365,-352.456612,0.00027397,7]
[331554286,1720497040374,-151.0,0.00027397,7]
[331554287,1720497040383,-352.456612,0.00027397,7]
[331554288,1720497040391,-151.0,0.00027397,7]
[331554289,1720497040400,-152.713107,0.00027397,7]
[331554290,1720497040409,-151.0,0.00027397,7]
[331554291,1720497040419,-597.139721,0.00027397,2]
[331554292,1720497040482,-597.139721,0.00027397,2]
[331554293,1720497040493,-151.0,0.00027397,7]
[331554294,1720497040503,-151.0,0.00027397,7]
[331554295,1720497040512,-151.0,0.00027397,7]
[331554296,1720497040521,-290.046669,0.00027397,7]
[331554297,1720497040530,-151.0,0.00027397,7]
[331554298,1720497040538,-151.0,0.00027397,7]
[331554299,1720497040547,-156.976629,0.00027397,7]
[331554300,1720497040557,-151.0,0.00027397,7]
[331554301,1720497040566,-151.0,0.00027397,7]
[331554302,1720497040575,-172.42394717,0.00028,30]
[331554303,1720497040584,-505.07079601,0.00028,2]
[331554304,1720497040593,-151.0,0.00029793,7]
[331554305,1720497040602,-248.18592096,0.000298,120]
[331554306,1720497040612,-175.37288532,0.00029813,2]
[331554307,1720497040622,-154.65203293,0.0003,4]
[331554308,1720497040631,-643.5565645,0.0003,4]
[331554309,1720497040641,-170.45207762,0.0003,4]
[331554310,1720497040651,-283.0,0.0003,2]
[331554311,1720497040660,-166.917542,0.000316,7]
[331554312,1720497040669,-151.0,0.000316,7]
[331554313,1720497040678,-151.0,0.000316,7]
[331554314,1720497040688,-151.0,0.000316,7]
[331554315,1720497040697,-151.0,0.0003179,7]
[331554316,1720497040706,-151.0,0.0003179,7]
[331554317,1720497040715,-220521.23782879,0.000318,2]
[331554318,1720497040724,-151.0,0.000318,7]
[331554319,1720497040733,-151.0,0.000318,7]
[331554320,1720497040742,-156.447389,0.000318,7]
[331554321,1720497040752,-151.0,0.000318,7]
[331554322,1720497040762,-151.0,0.000318,7]
[331554323,1720497040771,-151.0,0.000318,7]
[331554324,1720497040781,-272.107494,0.000318,7]
[331554325,1720497040790,-272.107494,0.000318,7]
[331554326,1720497040799,-162.9872,0.000318,7]
[331554327,1720497040808,-352.456612,0.000318,7]
[331554328,1720497040817,-151.0,0.000318,7]
[331554329,1720497040826,-352.456612,0.000318,7]
[331554330,1720497040835,-151.0,0.000318,7]
[331554331,1720497040844,-151.0,0.000318,7]
[331554332,1720497040853,-151.0,0.000318,7]
[331554333,1720497040862,-597.139721,0.000318,2]
[331554334,1720497040871,-597.139721,0.000318,2]
[331554335,1720497040880,-151.0,0.000318,7]
[331554336,1720497040889,-151.0,0.000318,7]
[331554337,1720497040897,-151.0,0.000318,7]
[331554338,1720497040906,-151.0,0.000318,7]
[331554339,1720497040915,-152.16090413,0.00032789,2]
[331554340,1720497040924,-162.498989,0.00032877,2]
[331554341,1720497040933,-1740.043342,0.00032877,7]
[331554342,1720497040943,-1740.043342,0.00032877,7]
[331554343,1720497040952,-1740.043342,0.00032877,7]
[331554344,1720497040960,-1740.043342,0.00032877,7]
[331554345,1720497040969,-150.0,0.00032877,2]
[331554346,1720497040978,-283.0,0.00033,2]
[331554347,1720497040989,-283.0,0.00033,2]
[331554348,1720497040998,-750.0,0.00033295,2]
[331554349,1720497041007,-252.154111,0.00033295,2]
[331554350,1720497041016,-88745.31066533,0.00033333,2]
[331554351,1720497041025,-1282.49405735,0.00034728,12]
[331554352,1720497041034,-1000.0,0.000348,3]
[331554353,1720497041045,-2372.02455725,0.00034899,60]
[331554354,1720497041055,-26468.49870678,0.000349,2]
[331554355,1720497041064,-360.8874203,0.00034989,4]
[331554356,1720497041073,-275.22284259,0.00035,120]
[331554357,1720497041083,-1662.41784921,0.00035,4]
[331554358,1720497041091,-1183.21854684,0.00035,2]
[331554359,1720497041100,-692.82385815,0.00035,30]
[331554360,1720497041109,-192.802,0.00035011,30]
[331554361,1720497041119,-151.047,0.00035198,2]
[331554362,1720497041128,-1405.0,0.00035198,2]
[331554363,1720497041137,-241.754,0.00035198,2]
[331554364,1720497041145,-212.62660586,0.00035259,4]
[331554365,1720497041154,-281.14819643,0.00035292,4]
[331554366,1720497041164,-154.62117811,0.00035581,4]
[331554367,1720497041173,-203.13737373,0.00035615,2]
[331554368,1720497041182,-154.62117811,0.00035615,2]
[331554369,1720497041191,-154.62117811,0.00035615,4]
[331554370,1720497041199,-151.0,0.00035616,7]
[331554371,1720497041208,-151.0,0.00035616,7]
[331554372,1720497041217,-151.0,0.00035616,7]
[331554373,1720497041227,-160.0,0.00035657,3]
[331554374,1720497041237,-371.68939578,0.00035999,4]
[331554375,1720497041246,-245.4946204,0.00035999,4]
[331554376,1720497041255,-283.0,0.00036,2]
[331554377,1720497041263,-283.0,0.00036,2]
[331554378,1720497041272,-151.0,0.00036,7]
[331554379,1720497041281,-597.139721,0.00036,2]
[331554380,1720497041290,-597.139721,0.00036,2]
[331554381,1720497041299,-151.0,0.00036,7]
[331554382,1720497041309,-245.98858,0.00036,7]
[331554383,1720497041318,-394.28228504,0.00036351,4]
[331554384,1720497041327,-352.456612,0.000364,7]
[331554385,1720497041336,-151.0,0.000364,7]
[331554386,1720497041345,-352.456612,0.000364,7]
[331554387,1720497041353,-269.901281,0.000364,7]
[331554388,1720497041362,-151.0,0.000364,7]
[331554389,1720497041371,-1740.043342,0.000364,7]
[331554390,1720497041380,-1740.043342,0.000364,7]
[331554391,1720497041388,-528.3,0.000365,62]
[331554392,1720497041397,-155.3731265,0.00037,4]
[331554393,1720497041406,-600.0,0.00037053,2]
[331554394,1720497041415,-600.0,0.00037439,2]
[331554395,1720497041424,-151.0,0.00037523,7]
[331554396,1720497041433,-4796.26227323,0.000376,23]
[331554397,1720497041493,-12185.61817522,0.000376,23]
[331554398,1720497041502,-12185.61817521,0.000376,23]
[331554399,1720497041511,-12185.61817521,0.000376,23]
[331554400,1720497041520,-12185.61817521,0.000376,23]
[331554401,1720497041530,-151.0,0.000376,7]
[331554402,1720497041538,-272.107494,0.000376,7]
[331554403,1720497041547,-272.107494,0.000376,7]
[331554404,1720497041556,-817.81397615,0.00037825,2]
[331554405,1720497041565,-5910.9073751,0.000379,2]
[331554406,1720497041574,-5045.0,0.00038,7]
[331554407,1720497041583,-500.7,0.00038,120]
[331554408,1720497041592,-366.61198732,0.00038179,2]
[331554409,1720497041600,-150.0,0.00038198,2]
[331554410,1720497041609,-1405.0,0.00038198,2]
[331554411,1720497041618,-150.0,0.00038285,2]
[331554412,1720497041626,-249.837777,0.00038301,7]
[331554413,1720497041635,-153.0,0.00038301,2]
[331554414,1720497041644,-306.0,0.00038301,2]
[331554415,1720497041653,-153.0,0.00038301,2]
[331554416,1720497041662,-5292.21400908,0.00038316,2]
[331554417,1720497041671,-13771.79986431,0.000384,2]
[331554418,1720497041680,-5273.42415152,0.00038499,5]
[331554419,1720497041690,-292996.91628,0.00038499,14]
[331554420,1720497041698,-536.07685891,0.00038499,30]
[331554421,1720497041707,-203274.65111708,0.000385,2]
[331554422,1720497041716,-406.51951615,0.000385,3]
[331554423,1720497041725,-65073.27414571,0.000385,2]
[331554424,1720497041854,-88764.75786593,0.000385,2]
[331554425,1720497041865,-2439.11735984,0.000385,2]
[331554426,1720497041876,-500.0,0.000385,2]
[331554427,1720497042006,-671.89394913,0.00027397,2]
[331554428,1720497042015,-671.89394913,0.00027397,2]
[331554429,1720497042025,-671.89394913,0.00027397,2]
[331554430,1720497042034,-671.89394913,0.00027397,2]
[331554431,1720497042043,-671.89394913,0.00027397,2]
[331554432,1720497042055,-671.89394913,0.00027397,2]
[331554433,1720497042064,-671.89394913,0.00027397,2]
[331554434,1720497042074,-671.89394913,0.00027397,2]
[331554435,1720497042083,-671.89394913,0.00027397,2]
[331554436,1720497042093,-671.89394913,0.00027397,2]
[331554437,1720497042101,-671.89394913,0.00027397,2]
[331554438,1720497042110,-671.89394913,0.00027397,2]
[331554439,1720497042119,-671.89394913,0.00027397,2]
[331554440,1720497042131,-671.89394913,0.00027397,2]
[331554441,1720497042140,-671.89394913,0.00027397,2]
[331554442,1720497042149,-671.89394913,0.00027397,2]
[331554443,1720497042158,-671.89394913,0.00027397,2]
[331554444,1720497042167,-671.89394913,0.00027397,2]
[331554445,1720497042176,-671.89394913,0.00027397,2]
[331554446,1720497042185,-159109.85794608,0.000385,2]
[331554447,1720497042194,-153.640149,0.000385,14]
[331554448,1720497042203,-157.184594,0.000385,14]
[331554449,1720497042212,-151.0,0.000385,14]
[331554451,1720497042222,-151.0,0.000385,14]
[331554453,1720497042232,-272.107494,0.000385,14]
[331554454,1720497042300,-272.107494,0.000385,14]
[331554456,1720497042311,-272.107494,0.000385,14]
[331554457,1720497042321,-272.107494,0.000385,14]
[331554458,1720497042330,-352.456612,0.000385,14]
[331554459,1720497042340,-151.0,0.000385,14]
[331554460,1720497042349,-352.456612,0.000385,14]
[331554461,1720497042358,-151.0,0.000385,14]
[331554462,1720497042367,-352.456612,0.000385,14]
[331554463,1720497042376,-352.456612,0.000385,14]
[331554464,1720497042385,-151.0,0.000385,14]
[331554465,1720497042395,-151.0,0.000385,14]
[331554466,1720497042404,-1740.043342,0.000385,14]
[331554467,1720497042413,-1740.043342,0.000385,14]
[331554468,1720497042422,-1740.043342,0.000385,14]
[331554469,1720497042431,-1740.043342,0.000385,14]
[331554470,1720497042441,-1500.0,0.000385,14]
[331554471,1720497042450,-1500.0,0.000385,14]
[331554472,1720497042459,-1500.0,0.000385,14]
[331554473,1720497042468,-1500.0,0.000385,14]
[331554474,1720497042478,-1500.0,0.000385,14]
[331554475,1720497042487,-1500.0,0.000385,14]
[331554476,1720497042496,-1099.453106,0.000385,14]
[331554477,1720497042506,-151.0,0.000385,14]
[331554478,1720497042515,-151.0,0.000385,14]
[331554479,1720497042525,-597.139721,0.000385,2]
[331554480,1720497042534,-597.139721,0.000385,2]
[331554481,1720497042543,-597.139721,0.000385,2]
[331554482,1720497042552,-597.139721,0.000385,2]
[331554483,1720497042562,-151.0,0.000385,14]
[331554484,1720497042570,-151.0,0.000385,14]
[331554485,1720497042579,-1007.544524,0.000385,27]
[331554486,1720497042588,-151.0,0.000385,14]
[331554487,1720497042597,-151.0,0.000385,14]
[331554488,1720497042607,-155.293158,0.000385,14]
[331554489,1720497042616,-300.68994512,0.00038529,2]
[331554490,1720497042625,-4856.92412245,0.00038542,60]
[331554491,1720497042634,-151.0,0.00038567,14]
[331554492,1720497042644,-382.7274674,0.00038572,2]
[331554493,1720497042654,-160.0,0.00038597,4]
[331554494,1720497042663,-287.2256462,0.00038597,5]
[331554495,1720497042672,-500.0,0.00038597,30]
[331554496,1720497042682,-500.0,0.00038597,30]
[331554497,1720497042691,-500.0,0.00038597,30]
[331554498,1720497042700,-489.49595809,0.00038597,30]
[331554499,1720497042710,-272.107494,0.00038622,14]
[331554500,1720497042719,-272.107494,0.00038622,14]
[331554501,1720497042729,-352.456612,0.00038651,14]
[331554503,1720497042740,-151.0,0.00038651,14]
[331554504,1720497042749,-352.456612,0.00038651,14]
[331554505,1720497042758,-151.0,0.00038651,14]
[331554506,1720497042766,-1740.043342,0.00038651,14]
[331554507,1720497042775,-1740.043342,0.00038651,14]
[331554508,1720497042785,-187.074297,0.00038651,14]
[331554509,1720497042793,-597.139721,0.00038651,2]
[331554511,1720497042803,-597.139721,0.00038651,2]
[331554512,1720497042812,-151.0,0.00038651,14]
[331554514,1720497042821,-151.0,0.00038651,14]
[331554516,1720497042830,-500.0,0.00038651,2]
[331554517,1720497042839,-850.0,0.00038651,30]
[331554518,1720497042849,-1508.8045144,0.00038651,120]
[331554519,1720497042859,-209.99747162,0.00038651,120]
[331554520,1720497042868,-153.1957154,0.00038651,120]
[331554521,1720497042877,-502547.33255906,0.00038651,7]
[331554522,1720497042890,-372.61876162,0.00038651,7]
[331554523,1720497042901,-523.90588604,0.00038651,7]
[331554524,1720497042913,-484.27888395,0.00038651,7]
[331554525,1720497042925,-376.84800031,0.00038651,7]
[331554532,1720497043488,-500.0,0.00016254,2]
[331554533,1720497043497,-86.6757247,0.00023966,2]
[331554534,1720497043553,-2335.74200014,0.00023966,2]
[331554535,1720497043563,-3244.25799986,0.0003179,3]
[331554536,1720497043670,-1484.98520933,0.0003179,3]
[331554628,1720497046578,-154.62117811,0.00025869,2]
[331554630,1720497046588,-481.3747126,0.00027397,2]
[331554672,1720497247536,4912.21028058,0.00014998,2]
[331554676,1720497380539,945.57077541,0.00015,2]
[331554677,1720497487387,288.39057041,0.00015,2]
[331554678,1720497491377,154.65203293,0.00014999,2]
[331554679,1720497510863,154.65203293,0.00014999,2]
[331554680,1720497541905,209.2545862,0.00014999,2]
[331554683,1720497589202,182.7181389,0.00014999,2]
[331554684,1720497626416,231.2355039,0.00014999,2]
[331554685,1720497642922,154.65203293,0.00014999,2]
[331554686,1720497669372,154.65203293,0.00014999,2]
[331554687,1720497712916,209.2545862,0.00014999,2]
[331554689,1720497723711,182.7181389,0.00014999,2]
[331554690,1720497753863,182.7181389,0.00014999,2]
[331554691,1720497773843,547.62445991,0.00014999,2]
[331554695,1720497794869,154.65203293,0.00014999,2]
[331554696,1720497829377,154.65203293,0.00014999,2]
[331554698,1720497855495,209.2545862,0.00014999,2]
[331554701,1720497918727,182.7181389,0.00014999,2]
[331554702,1720497943880,154.63660398,0.00014999,2]
[331554704,1720497945352,1992.51989508,0.00014999,2]
[331554705,1720497960186,271.52737978,0.00014999,2]